[Event "FIDE Zonal 2.5 Open 2019"]
[Site "Montevideo"]
[Date "2019.04.16"]
[Round "5.4"]
[White "Perez Ponsa, Federico"]
[Black "Michailov, Matias"]
[Result "1-0"]
[ECO "B53"]
[WhiteElo "2562"]
[BlackElo "2264"]
[Annotator "RC"]
[PlyCount "127"]
[EventDate "2019.04.13"]
[EventType "swiss"]
[EventCountry "URU"]
[SourceTitle "playchess.com"]
[Source "ChessBase"]
[SourceQuality "1"]
[TimeControl "40/5400+30:1800+30"]

1. e4 {[%emt 0:10:41]} c5 {[%emt 0:01:30]} 2. Nf3 {[%emt 0:00:32]} d6 {[%emt 0:00:08]} 3. d4 {[%emt 0:01:13]} cxd4 {[%emt 0:00:10]} 4. Qxd4 {[%emt 0:01:21]} a6 {[%emt 0:03:56]} 5. h3 {[%emt 0:00:50]} Nc6 {[%emt 0:00:36]} 6. Qe3 {[%emt 0:00:06]} g6 {[%emt 0:02:55]} 7. Be2 {[%emt 0:01:16]} Nf6 {[%emt 0:03:30]} 8. c4 {[%emt 0:01:42]} Bg7 {[%emt 0:00:27]} 9. O-O {[%emt 0:00:42]} O-O {[%emt 0:01:29]} 10. Nc3 {[%emt 0:00:11]} Nd7 {[%emt 0:03:41]} 11. b3 {[%emt 0:03:02]} Nde5 {[%emt 0:10:00]} 12. Rd1 {[%emt 0:13:35]} Qa5 {[%emt 0:06:05]} 13. Nxe5 {[%emt 0:03:12]} Bxe5 {[%emt 0:12:09]} 14. Bb2 {[%emt 0:06:35]} Qc5 {[%emt 0:02:52]} 15. Qd2 {[%emt 0:01:47]} Be6 {[%emt 0:09:02]} 16. Rac1 {[%emt 0:02:00]} Bd4 {[%emt 0:06:52]} 17. Bf3 {[%emt 0:02:32]} Qe5 {[%emt 0:01:13]} 18. Na4 {[%emt 0:03:51]} Bxb2 {[%emt 0:01:01]} 19. Nxb2 {[%emt 0:00:20]} a5 {[%emt 0:03:14]} 20. Na4 {[%emt 0:03:48]} Qf6 {[%emt 0:11:35]} 21. Qe3 {[%emt 0:02:49]} Rad8 {[%emt 0:03:22]} 22. Rd2 {[%emt 0:04:07]} Ne5 {[%emt 0:08:03]} 23. Be2 {[%emt 0:00:47]} g5 {[%emt 0:00:06]} 24. c5 {[%emt 0:03:37]} Kg7 {[%emt 0:04:25]} 25. Rcd1 {[%emt 0:00:56]} Qf4 {[%emt 0:00:18]} 26. Qc3 {[%emt 0:06:21]} Qxe4 {[%emt 0:01:49]} 27. Qxa5 {[%emt 0:00:13]} d5 {[%emt 0:01:40]} 28. Nc3 {[%emt 0:01:41]} Qf4 {[%emt 0:00:51]} 29. Nxd5 {[%emt 0:01:57]} Bxd5 {[%emt 0:00:37]} 30. Rxd5 {[%emt 0:00:02]} Rxd5 {[%emt 0:00:30]} 31. Rxd5 {[%emt 0:00:02]} e6 {[%emt 0:00:24]} 32. Rd1 {[%emt 0:00:44]} h5 {[%emt 0:00:28]} 33. Qc3 {[%emt 0:01:51]} Qf6 {[%emt 0:00:39]} 34. Bxh5 {[%emt 0:01:17]} Rh8 {[%emt 0:00:21]} 35. Re1 {[%emt 0:03:07]} Nd7 {[%emt 0:00:43]} 36. Qxf6+ {[%emt 0:01:38]} Kxf6 {[%emt 0:00:01]} 37. Bf3 {[%emt 0:00:07]} Nxc5 {[%emt 0:00:04]} 38. b4 {[%emt 0:00:28]} Nd3 {[%emt 0:00:25]} 39. Rb1 {[%emt 0:00:11]} Rb8 {[%emt 0:01:32]} 40. a4 {[%emt 0:01:13]} Ne5 {[%emt 0:00:34]} 41. Be4 {[%emt 0:33:21]} Ke7 {[%emt 0:12:02]} 42. g4 {[%emt 0:00:00]} Kd6 {[%emt 0:07:39]} 43. Rd1+ {[%emt 0:00:00]} Kc7 {[%emt 0:00:28]} 44. Rc1+ {[%emt 0:00:00]} Kd6 {[%emt 0:02:11]} 45. Rc5 {[%emt 0:00:00]} f5 {[%emt 0:05:52]} 46. gxf5 {[%emt 0:00:00]} exf5 {[%emt 0:00:03]} 47. Bxf5 {[%emt 0:00:00]} b6 {[%emt 0:01:22]} 48. Rc3 {[%emt 0:00:00]} Ra8 {[%emt 0:00:06]} 49. Bc2 {[%emt 0:00:00]} Ra7 {[%emt 0:01:27]} 50. Kg2 {[%emt 0:00:00]} Nc6 {[%emt 0:01:01]} 51. Rc4 {[%emt 0:00:00]} Ne5 {[%emt 0:03:04]} 52. Rd4+ {[%emt 0:00:00]} Ke6 {[%emt 0:00:29]} 53. Bb3+ {[%emt 0:00:00]} Kf5 {[%emt 0:00:32]} 54. Rd6 {[%emt 0:00:00]} Rc7 {[%emt 0:00:25]} 55. Rxb6 {[%emt 0:00:00]} Nd3 {[%emt 0:00:29]} 56. Rb5+ {[%emt 0:00:00]} Kf4 {[%emt 0:00:28]} 57. Bd1 {[%emt 0:00:00]} Rc1 {[%emt 0:00:55]} 58. Bg4 {[%emt 0:00:00]} Ne1+ {[%emt 0:00:29]} 59. Kh2 {[%emt 0:00:00]} Nd3 {[%emt 0:00:25]} 60. Rf5+ {[%emt 0:00:00]} Ke4 {[%emt 0:00:10]} 61. b5 {[%emt 0:00:00]} Ra1 {[%emt 0:00:34]} 62. b6 {[%emt 0:00:00]} Rxa4 {[%emt 0:00:31]} 63. b7 {[%emt 0:00:00]} Rb4 {[%emt 0:00:15]} 64. Rf8 {[%emt 0:00:00]} 1-0

[Event "FIDE Zonal 2.5 Open 2019"]
[Site "Montevideo"]
[Date "2019.04.16"]
[Round "5.7"]
[White "Viera, Emilio"]
[Black "Cubas, Jose Fernando"]
[Result "0-1"]
[ECO "A13"]
[WhiteElo "2138"]
[BlackElo "2505"]
[Annotator "ChessBase"]
[PlyCount "94"]
[EventDate "2019.04.13"]
[EventType "swiss"]
[EventCountry "URU"]
[SourceTitle "playchess.com"]
[Source "ChessBase"]
[SourceQuality "1"]
[TimeControl "40/5400+30:1800+30"]

1. c4 {[%emt 0:10:38]} e6 {[%emt 0:00:00]} 2. Nc3 {[%emt 0:00:17]} d5 {[%emt 0:00:57]} 3. cxd5 {[%emt 0:00:34]} exd5 {[%emt 0:00:06]} 4. d4 {[%emt 0:00:04]} c6 {[%emt 0:01:16]} 5. Bf4 {[%emt 0:01:32]} Bf5 {[%emt 0:03:41]} 6. Nf3 {[%emt 0:08:24]} Nf6 {[%emt 0:02:25]} 7. e3 {[%emt 0:02:59]} Nbd7 {[%emt 0:03:35]} 8. Bd3 {[%emt 0:01:50]} Bxd3 {[%emt 0:00:12]} 9. Qxd3 {[%emt 0:00:04]} Be7 {[%emt 0:00:06]} 10. O-O {[%emt 0:00:46]} Nh5 {[%emt 0:02:10]} 11. Bg3 {[%emt 0:02:05]} Nxg3 {[%emt 0:01:25]} 12. hxg3 {[%emt 0:00:02]} O-O {[%emt 0:00:07]} 13. Rab1 {[%emt 0:01:07]} a5 {[%emt 0:00:58]} 14. a3 {[%emt 0:01:32]} f5 {[%emt 0:21:25]} 15. b4 {[%emt 0:07:23]} b5 {[%emt 0:01:22]} 16. Ne5 {[%emt 0:13:15]} Rf6 {[%emt 0:17:21]} 17. Nxd7 {[%emt 0:03:50]} Qxd7 {[%emt 0:00:05]} 18. Rfc1 {[%emt 0:03:57]} axb4 {[%emt 0:03:37]} 19. axb4 {[%emt 0:00:02]} Qe8 {[%emt 0:03:28]} 20. Ne2 {[%emt 0:07:55]} Ra4 {[%emt 0:01:53]} 21. Qd2 {[%emt 0:01:43]} Qf8 {[%emt 0:00:21]} 22. Nf4 {[%emt 0:03:07]} Bxb4 {[%emt 0:02:57]} 23. Qd1 {[%emt 0:01:46]} Qa8 {[%emt 0:03:03]} 24. Nd3 {[%emt 0:04:22]} Bd6 {[%emt 0:00:31]} 25. Ra1 {[%emt 0:06:57]} Rf7 {[%emt 0:03:21]} 26. Nb2 {[%emt 0:01:19]} Rxa1 {[%emt 0:01:22]} 27. Rxa1 {[%emt 0:00:01]} Ra7 {[%emt 0:00:21]} 28. Rxa7 {[%emt 0:00:50]} Qxa7 {[%emt 0:00:01]} 29. Qc2 {[%emt 0:00:01]} Qd7 {[%emt 0:08:26]} 30. Nd3 {[%emt 0:00:54]} b4 {[%emt 0:01:20]} 31. Qa4 {[%emt 0:01:12]} Qb7 {[%emt 0:03:02]} 32. Nc1 {[%emt 0:00:01]} Kf7 {[%emt 0:00:50]} 33. Kf1 {[%emt 0:00:54]} g5 {[%emt 0:02:44]} 34. Nb3 {[%emt 0:01:36]} Ke6 {[%emt 0:01:35]} 35. Ke1 {[%emt 0:02:14]} h5 {[%emt 0:00:15]} 36. Qa5 {[%emt 0:02:43]} f4 {[%emt 0:04:19]} 37. gxf4 {[%emt 0:01:37]} Qh7 {[%emt 0:00:28]} 38. Qa2 {[%emt 0:01:19]} gxf4 {[%emt 0:01:39]} 39. exf4 {[%emt 0:01:03]} Bxf4 {[%emt 0:05:37]} 40. Nc5+ {[%emt 0:01:17]} Kf6 {[%emt 0:00:15]} 41. g3 {[%emt 0:30:53]} Bd6 {[%emt 0:30:37]} 42. Nb3 {[%emt 0:00:54]} Qd3 {[%emt 0:00:00]} 43. Qb2 {[%emt 0:00:00]} Kf7 {[%emt 0:00:00]} 44. Nd2 {[%emt 0:00:00]} Be7 {[%emt 0:00:00]} 45. Kd1 {[%emt 0:00:00]} Ke6 {[%emt 0:00:00]} 46. Ke1 {[%emt 0:00:00]} Kf5 {[%emt 0:00:00]} 47. Qc1 {[%emt 0:00:00]} Bg5 0-1

[Event "FIDE Zonal 2.5 Open 2019"]
[Site "Montevideo"]
[Date "2019.04.16"]
[Round "5.8"]
[White "Krysa, Leandro"]
[Black "Coppola, Claudio"]
[Result "1-0"]
[ECO "A57"]
[WhiteElo "2498"]
[BlackElo "2238"]
[Annotator "ChessBase"]
[PlyCount "57"]
[EventDate "2019.04.13"]
[EventType "swiss"]
[EventCountry "URU"]
[SourceTitle "playchess.com"]
[Source "ChessBase"]
[SourceQuality "1"]
[TimeControl "40/5400+30:1800+30"]

1. d4 {[%emt 0:00:00]} Nf6 {[%emt 0:02:15]} 2. c4 {[%emt 0:00:00]} c5 {[%emt 0:00:07]} 3. d5 {[%emt 0:00:00]} b5 {[%emt 0:00:02]} 4. cxb5 {[%emt 0:00:00]} a6 {[%emt 0:00:02]} 5. e3 {[%emt 0:00:18]} g6 {[%emt 0:00:06]} 6. Nc3 {[%emt 0:01:48]} Bg7 {[%emt 0:00:04]} 7. a4 {[%emt 0:03:55]} d6 {[%emt 0:00:23]} 8. e4 {[%emt 0:01:32]} O-O {[%emt 0:00:33]} 9. Nf3 {[%emt 0:00:02]} Ne8 {[%emt 0:00:21]} 10. Bd2 {[%emt 0:04:25]} f5 {[%emt 0:00:29]} 11. exf5 {[%emt 0:02:10]} Bxf5 {[%emt 0:00:31]} 12. Be2 {[%emt 0:02:03]} axb5 {[%emt 0:05:19]} 13. axb5 {[%emt 0:02:29]} Nd7 {[%emt 0:04:14]} 14. O-O {[%emt 0:07:17]} Nb6 {[%emt 0:05:36]} 15. Ra6 {[%emt 0:09:34]} Qb8 {[%emt 0:00:58]} 16. Bg5 {[%emt 0:01:27]} Nf6 {[%emt 0:18:39]} 17. Na4 {[%emt 0:16:42]} Rxa6 {[%emt 0:21:18]} 18. bxa6 {[%emt 0:00:10]} Nxa4 {[%emt 0:00:24]} 19. Qxa4 {[%emt 0:00:10]} Nxd5 {[%emt 0:01:09]} 20. a7 {[%emt 0:15:17]} Qb7 {[%emt 0:08:31]} 21. Bb5 {[%emt 0:07:41]} Nb4 {[%emt 0:02:56]} 22. Bxe7 {[%emt 0:02:08]} Bc2 {[%emt 0:18:59]} 23. b3 {[%emt 0:04:01]} Qxe7 {[%emt 0:03:15]} 24. a8=Q {[%emt 0:00:55]} Rxa8 {[%emt 0:00:06]} 25. Bc4+ {[%emt 0:03:54]} Kh8 {[%emt 0:03:32]} 26. Qxa8+ {[%emt 0:00:05]} Qf8 {[%emt 0:00:12]} 27. Qb7 {[%emt 0:00:25]} Qd8 {[%emt 0:01:22]} 28. Re1 {[%emt 0:00:38]} d5 {[%emt 0:00:42]} 29. Ng5 {[%emt 0:00:54]} 1-0

[Event "FIDE Zonal 2.5 Open 2019"]
[Site "Montevideo"]
[Date "2019.04.16"]
[Round "5.9"]
[White "Rodriguez Vila, Andres"]
[Black "Larrea, Manuel"]
[Result "1-0"]
[ECO "D05"]
[WhiteElo "2480"]
[BlackElo "2230"]
[Annotator "ChessBase"]
[PlyCount "85"]
[EventDate "2019.04.13"]
[EventType "swiss"]
[EventCountry "URU"]
[SourceTitle "playchess.com"]
[Source "ChessBase"]
[SourceQuality "1"]
[TimeControl "40/5400+30:1800+30"]

1. d4 {[%emt 0:00:00]} Nf6 {[%emt 0:07:49]} 2. Nf3 {[%emt 0:00:00]} e6 {[%emt 0:01:00]} 3. e3 {[%emt 0:00:00]} d5 {[%emt 0:04:35]} 4. Bd3 {[%emt 0:00:03]} c5 {[%emt 0:00:13]} 5. b3 {[%emt 0:00:10]} Nc6 {[%emt 0:00:19]} 6. O-O {[%emt 0:00:10]} Be7 {[%emt 0:00:58]} 7. Bb2 {[%emt 0:00:13]} O-O {[%emt 0:00:18]} 8. Nbd2 {[%emt 0:01:23]} b6 {[%emt 0:03:37]} 9. dxc5 {[%emt 0:00:43]} bxc5 {[%emt 0:00:43]} 10. a3 {[%emt 0:01:13]} a5 {[%emt 0:02:47]} 11. c4 {[%emt 0:00:08]} Bb7 {[%emt 0:19:17]} 12. cxd5 {[%emt 0:00:23]} exd5 {[%emt 0:00:46]} 13. Rc1 {[%emt 0:00:13]} Re8 {[%emt 0:09:16]} 14. Qc2 {[%emt 0:03:32]} h6 {[%emt 0:02:39]} 15. Rfd1 {[%emt 0:01:10]} Bd6 {[%emt 0:02:38]} 16. Nf1 {[%emt 0:01:13]} Rc8 {[%emt 0:18:39]} 17. Bb5 {[%emt 0:06:20]} Re6 {[%emt 0:04:43]} 18. Ng3 {[%emt 0:01:02]} Ng4 {[%emt 0:11:46]} 19. Nf5 {[%emt 0:12:17]} Bf8 {[%emt 0:00:57]} 20. Bc4 {[%emt 0:11:31]} Nce5 {[%emt 0:05:22]} 21. Nxe5 {[%emt 0:00:07]} Nxe5 {[%emt 0:00:06]} 22. Bxd5 {[%emt 0:00:11]} Bxd5 {[%emt 0:00:41]} 23. e4 {[%emt 0:00:08]} Nf3+ {[%emt 0:01:37]} 24. gxf3 {[%emt 0:00:07]} Qg5+ {[%emt 0:00:05]} 25. Kh1 {[%emt 0:00:06]} Rg6 {[%emt 0:00:56]} 26. Rg1 {[%emt 0:07:48]} Qxf5 {[%emt 0:00:20]} 27. Qd3 {[%emt 0:01:38]} Bxe4 {[%emt 0:00:50]} 28. fxe4 {[%emt 0:02:06]} Rxg1+ {[%emt 0:00:15]} 29. Rxg1 {[%emt 0:02:15]} Qxf2 {[%emt 0:00:39]} 30. Bc3 {[%emt 0:00:07]} Re8 {[%emt 0:00:35]} 31. e5 {[%emt 0:02:57]} a4 {[%emt 0:00:32]} 32. bxa4 {[%emt 0:00:55]} Qf4 {[%emt 0:00:07]} 33. a5 {[%emt 0:00:38]} c4 {[%emt 0:00:04]} 34. Qe2 {[%emt 0:01:22]} Re6 {[%emt 0:00:45]} 35. Rf1 {[%emt 0:01:52]} Qh4 {[%emt 0:00:05]} 36. Qf3 {[%emt 0:00:20]} Qe7 {[%emt 0:00:18]} 37. Qd5 {[%emt 0:02:37]} Qc7 {[%emt 0:00:57]} 38. a4 {[%emt 0:02:09]} g6 {[%emt 0:00:47]} 39. Rf4 {[%emt 0:03:55]} Qc6 {[%emt 0:00:30]} 40. Qxc6 {[%emt 0:00:05]} Rxc6 {[%emt 0:00:02]} 41. Rf6 {[%emt 0:30:16]} Rc8 {[%emt 0:04:01]} 42. Kg2 {[%emt 0:00:00]} Bg7 {[%emt 0:02:22]} 43. Rb6 {[%emt 0:00:00]} 1-0

[Event "FIDE Zonal 2.5 Open 2019"]
[Site "Montevideo"]
[Date "2019.04.16"]
[Round "5.10"]
[White "Carbone, Diego"]
[Black "Curia, Santiago Jose"]
[Result "1-0"]
[ECO "D30"]
[WhiteElo "2277"]
[BlackElo "1989"]
[Annotator "NA"]
[PlyCount "77"]
[EventDate "2019.04.13"]
[EventType "swiss"]
[EventCountry "URU"]
[SourceTitle "playchess.com"]
[Source "ChessBase"]
[SourceQuality "1"]
[TimeControl "40/5400+30:1800+30"]

1. d4 {[%emt 0:00:35]} d5 {[%emt 0:00:23]} 2. c4 {[%emt 0:00:25]} e6 {[%emt 0:00:28]} 3. Nf3 {[%emt 0:00:21]} a6 {[%emt 0:00:09]} 4. g3 {[%emt 0:00:39]} dxc4 {[%emt 0:00:28]} 5. Bg2 {[%emt 0:00:19]} b5 {[%emt 0:01:25]} 6. Ne5 {[%emt 0:00:31]} Ra7 {[%emt 0:00:07]} 7. a4 {[%emt 0:01:08]} Bb7 {[%emt 0:06:40]} 8. e4 {[%emt 0:04:00]} c6 {[%emt 0:13:38]} 9. Be3 {[%emt 0:07:16]} Ra8 {[%emt 0:04:39]} 10. O-O {[%emt 0:10:24]} Nd7 {[%emt 0:04:30]} 11. f4 {[%emt 0:01:20]} h5 {[%emt 0:21:47]} 12. Nc3 {[%emt 0:08:17]} Bb4 {[%emt 0:10:36]} 13. d5 {[%emt 0:08:23]} Nxe5 {[%emt 0:01:02]} 14. fxe5 {[%emt 0:00:25]} Bxc3 {[%emt 0:00:17]} 15. bxc3 {[%emt 0:00:22]} cxd5 {[%emt 0:05:45]} 16. exd5 {[%emt 0:00:27]} exd5 {[%emt 0:11:26]} 17. Qf3 {[%emt 0:01:30]} Qc7 {[%emt 0:04:08]} 18. Bd4 {[%emt 0:11:11]} Qe7 {[%emt 0:05:26]} 19. axb5 {[%emt 0:09:25]} axb5 {[%emt 0:00:02]} 20. Rxa8+ {[%emt 0:00:08]} Bxa8 {[%emt 0:00:05]} 21. Ra1 {[%emt 0:00:07]} Bb7 {[%emt 0:03:17]} 22. Ra7 {[%emt 0:00:07]} Qd7 {[%emt 0:01:00]} 23. e6 {[%emt 0:02:10]} fxe6 {[%emt 0:00:14]} 24. Qf4 {[%emt 0:00:05]} Qc8 {[%emt 0:02:28]} 25. Bxg7 {[%emt 0:05:27]} Rh7 {[%emt 0:00:08]} 26. Qf8+ {[%emt 0:15:23]} Kd7 {[%emt 0:00:04]} 27. Rxb7+ {[%emt 0:04:52]} Qxb7 {[%emt 0:00:03]} 28. Qxg8 {[%emt 0:00:09]} Qa7+ {[%emt 0:01:22]} 29. Kf1 {[%emt 0:02:15]} Qa1+ {[%emt 0:00:08]} 30. Kf2 {[%emt 0:00:45]} Rxg7 {[%emt 0:00:42]} 31. Qxg7+ {[%emt 0:00:07]} Kd6 {[%emt 0:00:40]} 32. Qd4 {[%emt 0:01:36]} Qb2+ {[%emt 0:00:39]} 33. Kf3 {[%emt 0:00:19]} e5 {[%emt 0:01:11]} 34. Qb6+ {[%emt 0:00:14]} Kd7 {[%emt 0:00:01]} 35. Bh3+ {[%emt 0:00:12]} Ke8 {[%emt 0:00:15]} 36. Qe6+ {[%emt 0:00:38]} Kf8 {[%emt 0:00:15]} 37. Qf6+ {[%emt 0:00:30]} Kg8 {[%emt 0:00:18]} 38. Qg6+ {[%emt 0:01:25]} Kf8 {[%emt 0:00:21]} 39. Qd6+ {[%emt 0:00:24]} 1-0

[Event "FIDE Zonal 2.5 Open 2019"]
[Site "Montevideo"]
[Date "2019.04.16"]
[Round "5.11"]
[White "Suarez, Pedro"]
[Black "Jodorcovsky Werjivker, Paulo"]
[Result "1/2-1/2"]
[ECO "D30"]
[WhiteElo "2019"]
[BlackElo "2257"]
[Annotator "NA"]
[PlyCount "86"]
[EventDate "2019.04.13"]
[EventType "swiss"]
[EventCountry "URU"]
[SourceTitle "playchess.com"]
[Source "ChessBase"]
[SourceQuality "1"]
[TimeControl "40/5400+30:1800+30"]

1. d4 {[%emt 0:00:00]} d5 {[%emt 0:02:11]} 2. c4 {[%emt 0:00:05]} e6 {[%emt 0:00:04]} 3. Nf3 {[%emt 0:00:13]} c6 {[%emt 0:00:06]} 4. e3 {[%emt 0:00:37]} f5 {[%emt 0:00:18]} 5. Be2 {[%emt 0:01:42]} Nf6 {[%emt 0:00:12]} 6. Nbd2 {[%emt 0:07:25]} Bd6 {[%emt 0:02:15]} 7. c5 {[%emt 0:06:31]} Bc7 {[%emt 0:00:54]} 8. b4 {[%emt 0:01:33]} a6 {[%emt 0:05:07]} 9. Bb2 {[%emt 0:02:09]} Nbd7 {[%emt 0:00:04]} 10. Ng5 {[%emt 0:04:20]} Qe7 {[%emt 0:02:26]} 11. f4 {[%emt 0:01:26]} O-O {[%emt 0:00:30]} 12. Qc2 {[%emt 0:10:51]} h6 {[%emt 0:05:32]} 13. Ngf3 {[%emt 0:04:11]} Ne4 {[%emt 0:00:50]} 14. g3 {[%emt 0:01:48]} Nxd2 {[%emt 0:08:44]} 15. Qxd2 {[%emt 0:03:58]} Nf6 {[%emt 0:00:13]} 16. a4 {[%emt 0:00:38]} Ne4 {[%emt 0:01:31]} 17. Qc2 {[%emt 0:01:59]} Bd7 {[%emt 0:00:30]} 18. a5 {[%emt 0:01:11]} Be8 {[%emt 0:02:56]} 19. Rg1 {[%emt 0:00:34]} Bh5 {[%emt 0:02:55]} 20. Nh4 {[%emt 0:01:17]} Bxe2 {[%emt 0:04:20]} 21. Qxe2 {[%emt 0:00:08]} Kh7 {[%emt 0:07:06]} 22. Kd1 {[%emt 0:01:22]} g5 {[%emt 0:02:57]} 23. Nf3 {[%emt 0:00:13]} g4 {[%emt 0:04:02]} 24. Ne1 {[%emt 0:05:56]} Rg8 {[%emt 0:02:40]} 25. Kc2 {[%emt 0:01:52]} Rg6 {[%emt 0:01:41]} 26. Ng2 {[%emt 0:01:17]} h5 {[%emt 0:02:27]} 27. Bc3 {[%emt 0:02:02]} Rag8 {[%emt 0:03:23]} 28. Be1 {[%emt 0:00:46]} Rh6 {[%emt 0:01:08]} 29. Nh4 {[%emt 0:00:45]} Qe8 {[%emt 0:00:29]} 30. Rc1 {[%emt 0:03:22]} Bd8 {[%emt 0:00:58]} 31. Rg2 {[%emt 0:00:22]} Bxh4 {[%emt 0:02:02]} 32. gxh4 {[%emt 0:00:02]} Rhg6 {[%emt 0:12:58]} 33. Bg3 {[%emt 0:00:31]} R6g7 {[%emt 0:01:15]} 34. Ra1 {[%emt 0:00:28]} Qd8 {[%emt 0:02:02]} 35. Qe1 {[%emt 0:00:36]} Nf6 {[%emt 0:01:11]} 36. Qe2 {[%emt 0:00:15]} Ne8 {[%emt 0:00:39]} 37. Qe1 {[%emt 0:00:11]} Nc7 {[%emt 0:00:10]} 38. Qe2 {[%emt 0:00:06]} Nb5 {[%emt 0:00:06]} 39. Qd2 {[%emt 0:00:36]} Qf6 {[%emt 0:01:26]} 40. Rgg1 {[%emt 0:00:19]} Rd7 {[%emt 0:00:51]} 41. Rgf1 {[%emt 0:30:20]} Qg6 {[%emt 0:30:18]} 42. Qd3 {[%emt 0:00:13]} Qf6 {[%emt 0:07:28]} 43. Kb3 {[%emt 0:00:30]} Qg6 {[%emt 0:03:21]} 1/2-1/2

[Event "FIDE Zonal 2.5 Open 2019"]
[Site "Montevideo"]
[Date "2019.04.16"]
[Round "5.12"]
[White "Lanzilotta, Marcelo"]
[Black "Lopez Azambuja, Nicolas"]
[Result "0-1"]
[ECO "C00"]
[WhiteElo "1972"]
[BlackElo "2328"]
[Annotator "NA"]
[PlyCount "72"]
[EventDate "2019.04.13"]
[EventType "swiss"]
[EventCountry "URU"]
[SourceTitle "playchess.com"]
[Source "ChessBase"]
[SourceQuality "1"]
[TimeControl "40/5400+30:1800+30"]

1. e4 {[%emt 0:06:21]} e6 {[%emt 0:00:00]} 2. d3 {[%emt 0:00:32]} d5 {[%emt 0:00:00]} 3. Nd2 {[%emt 0:00:10]} c5 {[%emt 0:00:00]} 4. Ngf3 {[%emt 0:00:18]} Nc6 {[%emt 0:00:19]} 5. g3 {[%emt 0:00:08]} Bd6 {[%emt 0:00:12]} 6. Bg2 {[%emt 0:00:08]} Nge7 {[%emt 0:00:07]} 7. O-O {[%emt 0:00:04]} O-O {[%emt 0:00:13]} 8. Re1 {[%emt 0:00:06]} Qc7 {[%emt 0:00:31]} 9. Nf1 {[%emt 0:01:59]} d4 {[%emt 0:02:49]} 10. c3 {[%emt 0:04:08]} e5 {[%emt 0:03:07]} 11. h3 {[%emt 0:00:12]} f6 {[%emt 0:02:14]} 12. g4 {[%emt 0:02:00]} Ng6 {[%emt 0:05:06]} 13. Ng3 {[%emt 0:02:21]} Nd8 {[%emt 0:01:57]} 14. Bd2 {[%emt 0:03:17]} Ne6 {[%emt 0:00:35]} 15. Nh5 {[%emt 0:03:05]} Bd7 {[%emt 0:02:02]} 16. Qb3 {[%emt 0:04:06]} Kh8 {[%emt 0:06:49]} 17. Rac1 {[%emt 0:00:07]} Rac8 {[%emt 0:05:27]} 18. Ng3 {[%emt 0:07:05]} Qb8 {[%emt 0:05:09]} 19. Nf5 {[%emt 0:00:02]} Ngf4 {[%emt 0:03:54]} 20. Bf1 {[%emt 0:09:14]} b5 {[%emt 0:15:04]} 21. Bxf4 {[%emt 0:03:40]} Nxf4 {[%emt 0:03:06]} 22. cxd4 {[%emt 0:00:24]} exd4 {[%emt 0:04:35]} 23. Nxd6 {[%emt 0:08:25]} Qxd6 {[%emt 0:00:15]} 24. e5 {[%emt 0:00:01]} Qb6 {[%emt 0:01:45]} 25. Re4 {[%emt 0:02:45]} fxe5 {[%emt 0:04:23]} 26. Nxe5 {[%emt 0:03:13]} Be6 {[%emt 0:01:21]} 27. Qc2 {[%emt 0:00:05]} Qd6 {[%emt 0:00:55]} 28. b4 {[%emt 0:08:33]} c4 {[%emt 0:08:39]} 29. dxc4 {[%emt 0:00:08]} bxc4 {[%emt 0:03:24]} 30. Qd2 {[%emt 0:01:25]} c3 {[%emt 0:08:50]} 31. Qxd4 {[%emt 0:01:25]} Qxd4 {[%emt 0:00:23]} 32. Rxd4 {[%emt 0:00:02]} Bxa2 {[%emt 0:00:12]} 33. Kh2 {[%emt 0:21:03]} Ne2 {[%emt 0:02:44]} 34. Bxe2 {[%emt 0:00:51]} Rxf2+ {[%emt 0:00:04]} 35. Kg3 {[%emt 0:00:06]} Rxe2 {[%emt 0:00:07]} 36. Rxc3 {[%emt 0:00:09]} Rxc3+ {[%emt 0:00:14] Rd8+ [%clk 0:08:27]} 0-1

[Event "FIDE Zonal 2.5 Open 2019"]
[Site "Montevideo"]
[Date "2019.04.16"]
[Round "5.13"]
[White "Muniz, Rafael"]
[Black "Pichuaga, Juan Pablo"]
[Result "1-0"]
[ECO "B12"]
[WhiteElo "2257"]
[BlackElo "2021"]
[Annotator "NA"]
[PlyCount "81"]
[EventDate "2019.04.13"]
[EventType "swiss"]
[EventCountry "URU"]
[SourceTitle "playchess.com"]
[Source "ChessBase"]
[SourceQuality "1"]
[TimeControl "40/5400+30:1800+30"]

1. e4 {[%emt 0:00:00]} c6 {[%emt 0:00:00]} 2. d4 {[%emt 0:00:00]} d5 {[%emt 0:00:00]} 3. e5 {[%emt 0:00:00]} Bf5 {[%emt 0:03:44]} 4. h4 {[%emt 0:00:00]} h5 {[%emt 0:00:17]} 5. Bg5 {[%emt 0:00:11]} Qb6 {[%emt 0:00:28]} 6. Bd3 {[%emt 0:00:32]} Bxd3 {[%emt 0:03:00]} 7. Qxd3 {[%emt 0:01:23]} e6 {[%emt 0:07:14]} 8. Nd2 {[%emt 0:00:49]} Ne7 {[%emt 0:06:34]} 9. c4 {[%emt 0:04:08]} Nf5 {[%emt 0:02:23]} 10. Ngf3 {[%emt 0:00:52]} Qa6 {[%emt 0:14:43]} 11. b3 {[%emt 0:00:32]} Nd7 {[%emt 0:00:38]} 12. O-O {[%emt 0:02:46]} Be7 {[%emt 0:06:55]} 13. Bxe7 {[%emt 0:04:20]} Kxe7 {[%emt 0:01:00]} 14. Qc3 {[%emt 0:08:03]} Qb6 {[%emt 0:02:35]} 15. b4 {[%emt 0:03:47]} a5 {[%emt 0:02:36]} 16. Rfb1 {[%emt 0:02:32]} axb4 {[%emt 0:08:56]} 17. Rxb4 {[%emt 0:01:01]} Qa6 {[%emt 0:01:20]} 18. a4 {[%emt 0:08:19]} b6 {[%emt 0:02:44]} 19. cxd5 {[%emt 0:04:52]} cxd5 {[%emt 0:00:49]} 20. Qa3 {[%emt 0:00:18]} Ke8 {[%emt 0:04:18]} 21. Rc1 {[%emt 0:02:02]} f6 {[%emt 0:05:07]} 22. Rbb1 {[%emt 0:10:04]} Kf7 {[%emt 0:02:52]} 23. Rc7 {[%emt 0:03:15]} Rhd8 {[%emt 0:01:54]} 24. Qb3 {[%emt 0:03:11]} Ke8 {[%emt 0:09:00]} 25. exf6 {[%emt 0:01:37]} gxf6 {[%emt 0:01:27]} 26. Re1 {[%emt 0:05:36]} Kf7 {[%emt 0:01:19]} 27. Nf1 {[%emt 0:09:35]} Qxa4 {[%emt 0:03:32]} 28. Qxb6 {[%emt 0:01:26]} Qa6 {[%emt 0:01:10]} 29. Rxe6 {[%emt 0:01:27]} Qxb6 {[%emt 0:00:29]} 30. Rxb6 {[%emt 0:00:09]} Ra4 {[%emt 0:00:29]} 31. Ne3 {[%emt 0:04:34]} Ra1+ {[%emt 0:02:58]} 32. Kh2 {[%emt 0:00:19]} Nxe3 {[%emt 0:00:14]} 33. fxe3 {[%emt 0:00:06]} Ra3 {[%emt 0:00:12]} 34. Rd6 {[%emt 0:00:42]} Ke7 {[%emt 0:01:05]} 35. Rxd5 {[%emt 0:00:36]} Rxe3 {[%emt 0:00:15]} 36. Rxh5 {[%emt 0:03:03]} Re2 {[%emt 0:01:29]} 37. d5 {[%emt 0:03:37]} Kd6 {[%emt 0:03:17]} 38. Rc6+ {[%emt 0:00:25]} Ke7 {[%emt 0:00:03]} 39. Rh7+ {[%emt 0:02:28]} Ke8 {[%emt 0:00:29]} 40. Rh8+ {[%emt 0:00:20]} Ke7 {[%emt 0:00:16]} 41. d6+ {[%emt 0:30:10]} 1-0